[Event "*** SCC Grand Prix: Titled Tuesday Blitz"]
[Site "Chess.com"]
[Date "2020.06.23"]
[Round "9"]
[White "davigator"]
[Black "chesslh19"]
[Result "1-0"]
[WhiteElo "2297"]
[BlackElo "2124"]
[TimeControl "180+1"]
[EndTime "11:47:02 PDT"]
[Termination "davigator won by resignation"]

1. e4 {[%clk 0:03:00.9]} 1... c5 {[%clk 0:02:59.4]} 2. Nf3 {[%clk 0:03:00.8]}
2... d6 {[%clk 0:02:59.8]} 3. d4 {[%clk 0:02:59.7]} 3... cxd4 {[%clk 0:02:59.6]}
4. Nxd4 {[%clk 0:02:59.4]} 4... Nf6 {[%clk 0:02:59.9]} 5. Nc3 {[%clk 0:02:59.2]}
5... e6 {[%clk 0:02:59.7]} 6. Bg5 {[%clk 0:02:57.5]} 6... Be7 {[%clk 0:02:57.2]}
7. f4 {[%clk 0:02:54]} 7... Nc6 {[%clk 0:02:55]} 8. Qd2 {[%clk 0:02:51.2]} 8...
h6 {[%clk 0:02:54.5]} 9. Bxf6 {[%clk 0:02:50]} 9... Bxf6 {[%clk 0:02:53.1]} 10.
Nxc6 {[%clk 0:02:48.9]} 10... bxc6 {[%clk 0:02:54]} 11. O-O-O {[%clk 0:02:48.7]}
11... d5 {[%clk 0:02:49.1]} 12. g4 {[%clk 0:02:39.8]} 12... O-O {[%clk
0:02:41.8]} 13. h4 {[%clk 0:02:38]} 13... dxe4 {[%clk 0:02:34.4]} 14. Nxe4
{[%clk 0:02:34.4]} 14... Qxd2+ {[%clk 0:02:32.9]} 15. Rxd2 {[%clk 0:02:33.6]}
15... Bb7 {[%clk 0:02:06.4]} 16. Nc5 {[%clk 0:02:30.3]} 16... Bc8 {[%clk
0:01:51.7]} 17. Bg2 {[%clk 0:02:29.9]} 17... Rb8 {[%clk 0:01:51.2]} 18. c3
{[%clk 0:02:27.3]} 18... Rb5 {[%clk 0:01:46.5]} 19. Ne4 {[%clk 0:02:22]} 19...
Be7 {[%clk 0:01:32.5]} 20. g5 {[%clk 0:02:17]} 20... Rd5 {[%clk 0:01:24.8]} 21.
Rhd1 {[%clk 0:02:14.2]} 21... Rfd8 {[%clk 0:00:57.3]} 22. c4 {[%clk 0:02:13.1]}
22... Rxd2 {[%clk 0:00:57]} 23. Rxd2 {[%clk 0:02:13.3]} 23... Kf8 {[%clk
0:00:43]} 24. c5 {[%clk 0:02:10.3]} 24... Rd5 {[%clk 0:00:36]} 25. b4 {[%clk
0:02:08.7]} 25... f5 {[%clk 0:00:30.4]} 26. Nc3 {[%clk 0:02:07.2]} 26... Rxd2
{[%clk 0:00:27.4]} 27. Kxd2 {[%clk 0:02:07.8]} 27... Bd7 {[%clk 0:00:24.6]} 28.
Ne2 {[%clk 0:02:03.5]} 28... a5 {[%clk 0:00:24.5]} 29. a3 {[%clk 0:02:02.9]}
29... axb4 {[%clk 0:00:24.6]} 30. axb4 {[%clk 0:02:03.1]} 30... hxg5 {[%clk
0:00:23.5]} 31. hxg5 {[%clk 0:02:02.5]} 31... e5 {[%clk 0:00:23.8]} 32. Ke3
{[%clk 0:02:01]} 32... exf4+ {[%clk 0:00:23.4]} 33. Kxf4 {[%clk 0:02:01.2]}
33... Kf7 {[%clk 0:00:19.1]} 34. Nd4 {[%clk 0:02:00]} 34... Kg6 {[%clk
0:00:18.6]} 35. Bxc6 {[%clk 0:01:54.1]} 35... Bxg5+ {[%clk 0:00:18.7]} 36. Kf3
{[%clk 0:01:54.5]} 36... Bxc6+ {[%clk 0:00:14.9]} 37. Nxc6 {[%clk 0:01:54.1]}
37... Kf7 {[%clk 0:00:14.9]} 38. b5 {[%clk 0:01:50.2]} 38... Ke8 {[%clk
0:00:15.2]} 39. b6 {[%clk 0:01:48.8]} 39... Bd8 {[%clk 0:00:10.5]} 40. Kf4
{[%clk 0:01:47.2]} 40... Kd7 {[%clk 0:00:09.6]} 41. Ne5+ {[%clk 0:01:45.2]}
41... Kc8 {[%clk 0:00:07.6]} 42. Kxf5 {[%clk 0:01:44.8]} 42... Kb7 {[%clk
0:00:07]} 43. Ke6 {[%clk 0:01:41.9]} 43... Bxb6 {[%clk 0:00:06.9]} 44. c6+
{[%clk 0:01:41]} 44... Kc7 {[%clk 0:00:06.8]} 45. Kd5 {[%clk 0:01:40.6]} 45...
Ba5 {[%clk 0:00:06.5]} 46. Ng6 {[%clk 0:01:39.5]} 46... Be1 {[%clk 0:00:05.5]}
47. Kc5 {[%clk 0:01:39.3]} 47... Bf2+ {[%clk 0:00:05.2]} 48. Kd5 {[%clk
0:01:38.2]} 48... Bg3 {[%clk 0:00:05.5]} 49. Nf8 {[%clk 0:01:36.9]} 49... g5
{[%clk 0:00:05.6]} 50. Ne6+ {[%clk 0:01:36.9]} 50... Kc8 {[%clk 0:00:06.2]} 51.
Nxg5 {[%clk 0:01:37.6]} 51... Kc7 {[%clk 0:00:06.7]} 52. Ne6+ {[%clk 0:01:37.3]}
52... Kc8 {[%clk 0:00:06.6]} 53. Nc5 {[%clk 0:01:35.9]} 53... Bh2 {[%clk
0:00:06.8]} 54. Nb7 {[%clk 0:01:35.4]} 54... Kc7 {[%clk 0:00:06.7]} 55. Nc5
{[%clk 0:01:34]} 55... Kc8 {[%clk 0:00:07.1]} 56. Ne6 {[%clk 0:01:32.1]} 56...
Bg3 {[%clk 0:00:06.7]} 57. Kc5 {[%clk 0:01:32]} 57... Bh2 {[%clk 0:00:06.6]} 58.
Kb6 {[%clk 0:01:31.8]} 58... Bg1+ {[%clk 0:00:06.9]} 59. Kb5 {[%clk 0:01:30.7]}
59... Bh2 {[%clk 0:00:07.3]} 60. Nc5 {[%clk 0:01:30.4]} 60... Kc7 {[%clk
0:00:06.9]} 61. Nb7 {[%clk 0:01:27.7]} 61... Bg3 {[%clk 0:00:05.5]} 62. Kc5
{[%clk 0:01:27.6]} 62... Bh2 {[%clk 0:00:05.2]} 63. Kd5 {[%clk 0:01:27.9]} 63...
Bg3 {[%clk 0:00:05]} 64. Nc5 {[%clk 0:01:27.3]} 64... Bh2 {[%clk 0:00:05.2]} 65.
Nd3 {[%clk 0:01:27.3]} 65... Kc8 {[%clk 0:00:05.1]} 66. Nc5 {[%clk 0:01:24.3]}
66... Kc7 {[%clk 0:00:05.3]} 67. Ne4 {[%clk 0:01:25]} 67... Kc8 {[%clk
0:00:05.4]} 68. Kc5 {[%clk 0:01:22]} 68... Kc7 {[%clk 0:00:05.3]} 69. Kb5 {[%clk
0:01:20.7]} 69... Kc8 {[%clk 0:00:05.4]} 70. Nc5 {[%clk 0:01:20.1]} 70... Kc7
{[%clk 0:00:05.3]} 71. Ne6+ {[%clk 0:01:20.1]} 71... Kc8 {[%clk 0:00:05.6]} 72.
Kb6 {[%clk 0:01:20.4]} 72... Bg1+ {[%clk 0:00:05.4]} 73. Ka6 {[%clk 0:01:20.6]}
73... Bh2 {[%clk 0:00:05.7]} 74. Nd4 {[%clk 0:01:20]} 74... Kc7 {[%clk
0:00:05.5]} 75. Kb5 {[%clk 0:01:20.1]} 75... Bg1 {[%clk 0:00:05.6]} 76. Nf5
{[%clk 0:01:20]} 76... Kc8 {[%clk 0:00:05.4]} 77. Ne7+ {[%clk 0:01:20.1]} 77...
Kc7 {[%clk 0:00:05]} 78. Kc4 {[%clk 0:01:18.8]} 78... Bh2 {[%clk 0:00:04.6]} 79.
Kd5 {[%clk 0:01:18.3]} 79... Kd8 {[%clk 0:00:03.7]} 80. Ke6 {[%clk 0:01:17.3]}
80... Kc7 {[%clk 0:00:03.7]} 81. Kd5 {[%clk 0:01:17.4]} 81... Kd8 {[%clk
0:00:03.9]} 82. Nf5 {[%clk 0:01:18]} 82... Kc7 {[%clk 0:00:04.2]} 83. Nd4 {[%clk
0:01:18]} 83... Kc8 {[%clk 0:00:04.5]} 84. Nf3 {[%clk 0:01:15.1]} 84... Bg3
{[%clk 0:00:04.5]} 85. Ng5 {[%clk 0:01:14.9]} 85... Kc7 {[%clk 0:00:04.1]} 86.
Ne4 {[%clk 0:01:15.6]} 86... Kc8 {[%clk 0:00:04.1]} 87. Nxg3 {[%clk 0:01:15.6]}
1-0

[Event "*** SCC Grand Prix: Titled Tuesday Blitz"]
[Site "Chess.com"]
[Date "2020.06.23"]
[Round "9"]
[White "vpsetter"]
[Black "stolencandy13"]
[Result "1-0"]
[WhiteElo "2607"]
[BlackElo "2425"]
[TimeControl "180+1"]
[EndTime "11:47:05 PDT"]
[Termination "vpsetter won by resignation"]

1. e4 {[%clk 0:02:58.6]} 1... c6 {[%clk 0:02:38]} 2. d4 {[%clk 0:02:58.5]} 2...
d5 {[%clk 0:02:38.9]} 3. Nc3 {[%clk 0:02:58.6]} 3... dxe4 {[%clk 0:02:38.3]} 4.
Nxe4 {[%clk 0:02:59.5]} 4... Bf5 {[%clk 0:02:38.6]} 5. Ng3 {[%clk 0:02:59.6]}
5... Bg6 {[%clk 0:02:39.2]} 6. h4 {[%clk 0:02:58.1]} 6... h6 {[%clk 0:02:39.2]}
7. Nf3 {[%clk 0:02:55.2]} 7... Nd7 {[%clk 0:02:38]} 8. h5 {[%clk 0:02:54.7]}
8... Bh7 {[%clk 0:02:17]} 9. Bd3 {[%clk 0:02:54.4]} 9... Bxd3 {[%clk 0:02:10]}
10. Qxd3 {[%clk 0:02:55.3]} 10... e6 {[%clk 0:02:10.9]} 11. Bd2 {[%clk 0:02:55]}
11... Ngf6 {[%clk 0:02:10.4]} 12. O-O-O {[%clk 0:02:54.5]} 12... Be7 {[%clk
0:02:11.3]} 13. Kb1 {[%clk 0:02:50.7]} 13... Qb6 {[%clk 0:02:08.4]} 14. Qe2
{[%clk 0:02:45]} 14... Rc8 {[%clk 0:02:05.6]} 15. Ne5 {[%clk 0:02:35.6]} 15...
O-O {[%clk 0:01:25.5]} 16. Nxd7 {[%clk 0:02:23.1]} 16... Nxd7 {[%clk 0:01:24.4]}
17. Ne4 {[%clk 0:02:20.7]} 17... Nf6 {[%clk 0:01:21.8]} 18. Bc1 {[%clk
0:01:47.4]} 18... Rfd8 {[%clk 0:01:18.9]} 19. c3 {[%clk 0:01:43.2]} 19... Nxe4
{[%clk 0:01:16.4]} 20. Qxe4 {[%clk 0:01:43.1]} 20... Rd5 {[%clk 0:01:16.1]} 21.
g4 {[%clk 0:01:37.1]} 21... Rcd8 {[%clk 0:01:12.8]} 22. Rde1 {[%clk 0:01:08]}
22... c5 {[%clk 0:01:10.3]} 23. dxc5 {[%clk 0:01:07.1]} 23... Qxc5 {[%clk
0:01:08.3]} 24. f4 {[%clk 0:01:04.3]} 24... Bf6 {[%clk 0:01:05.2]} 25. g5 {[%clk
0:00:38.2]} 25... hxg5 {[%clk 0:01:03.7]} 26. h6 {[%clk 0:00:35.7]} 26... g4
{[%clk 0:00:54.4]} 27. Reg1 {[%clk 0:00:19.7]} 27... Rh5 {[%clk 0:00:50.3]} 28.
hxg7 {[%clk 0:00:09.8]} 28... Bxg7 {[%clk 0:00:44.9]} 29. Rxh5 {[%clk
0:00:08.4]} 29... Qxh5 {[%clk 0:00:45.8]} 30. Qxb7 {[%clk 0:00:07.9]} 30... Qf5+
{[%clk 0:00:42.5]} 31. Ka1 {[%clk 0:00:08.1]} 31... a5 {[%clk 0:00:42.3]} 32.
Qg2 {[%clk 0:00:06.2]} 32... Kf8 {[%clk 0:00:33.2]} 33. Qxg4 {[%clk 0:00:06.1]}
33... Qxg4 {[%clk 0:00:33.7]} 34. Rxg4 {[%clk 0:00:07]} 34... Rd1 {[%clk
0:00:34.6]} 35. Kb1 {[%clk 0:00:07.7]} 35... Bh6 {[%clk 0:00:31.1]} 36. Kc2
{[%clk 0:00:08]} 36... Rf1 {[%clk 0:00:31]} 37. Bd2 {[%clk 0:00:08.1]} 37... Rf2
{[%clk 0:00:26.6]} 38. Kd3 {[%clk 0:00:08.5]} 38... e5 {[%clk 0:00:26.1]} 39.
Rh4 {[%clk 0:00:05.8]} 39... Kg7 {[%clk 0:00:19.2]} 40. Be3 {[%clk 0:00:04.5]}
40... Rxb2 {[%clk 0:00:15.1]} 41. Rg4+ {[%clk 0:00:04]} 41... Kh7 {[%clk
0:00:11.2]} 42. fxe5 {[%clk 0:00:03.2]} 42... Bxe3 {[%clk 0:00:10.9]} 43. Kxe3
{[%clk 0:00:04.1]} 43... Rxa2 {[%clk 0:00:11.1]} 44. Kd3 {[%clk 0:00:03.7]}
44... Ra1 {[%clk 0:00:08.9]} 45. c4 {[%clk 0:00:03.4]} 45... a4 {[%clk
0:00:08.3]} 46. c5 {[%clk 0:00:03.8]} 46... Rc1 {[%clk 0:00:07.1]} 47. Rc4
{[%clk 0:00:03]} 47... Re1 {[%clk 0:00:05.9]} 48. c6 {[%clk 0:00:03.3]} 48...
Rxe5 {[%clk 0:00:05.3]} 49. c7 {[%clk 0:00:03.6]} 49... Re8 {[%clk 0:00:05]} 50.
c8=Q {[%clk 0:00:04.1]} 50... Rxc8 {[%clk 0:00:05.5]} 51. Rxc8 {[%clk 0:00:05]}
51... a3 {[%clk 0:00:06.1]} 52. Ra8 {[%clk 0:00:05.3]} 52... a2 {[%clk 0:00:07]}
53. Rxa2 {[%clk 0:00:05.3]} 53... Kg6 {[%clk 0:00:07.9]} 54. Ke3 {[%clk
0:00:05.8]} 54... Kf5 {[%clk 0:00:08.8]} 55. Kf3 {[%clk 0:00:06.7]} 55... f6
{[%clk 0:00:09.7]} 1-0

[Event "*** SCC Grand Prix: Titled Tuesday Blitz"]
[Site "Chess.com"]
[Date "2020.06.23"]
[Round "9"]
[White "Lupul_Cenusiu"]
[Black "rpragchess"]
[Result "0-1"]
[WhiteElo "2569"]
[BlackElo "2775"]
[TimeControl "180+1"]
[EndTime "11:47:07 PDT"]
[Termination "rpragchess won on time"]

1. d4 {[%clk 0:03:00.9]} 1... Nf6 {[%clk 0:02:57.5]} 2. Nf3 {[%clk 0:03:00.7]}
2... b6 {[%clk 0:02:57.1]} 3. Bg5 {[%clk 0:02:58.4]} 3... e6 {[%clk 0:02:56.6]}
4. Nbd2 {[%clk 0:02:57.9]} 4... h6 {[%clk 0:02:54.7]} 5. Bxf6 {[%clk 0:02:57]}
5... Qxf6 {[%clk 0:02:54.7]} 6. e4 {[%clk 0:02:56.6]} 6... Bb7 {[%clk
0:02:54.9]} 7. Bd3 {[%clk 0:02:55.3]} 7... d6 {[%clk 0:02:50.7]} 8. Qe2 {[%clk
0:02:51.4]} 8... g5 {[%clk 0:02:41.1]} 9. h3 {[%clk 0:02:50.3]} 9... Bg7 {[%clk
0:02:36.1]} 10. c3 {[%clk 0:02:49.9]} 10... Qe7 {[%clk 0:02:36]} 11. Nf1 {[%clk
0:02:46.8]} 11... c5 {[%clk 0:02:23.7]} 12. dxc5 {[%clk 0:02:38]} 12... dxc5
{[%clk 0:02:10.6]} 13. Ng3 {[%clk 0:02:19.8]} 13... h5 {[%clk 0:02:04.1]} 14.
Nd2 {[%clk 0:01:53.3]} 14... h4 {[%clk 0:01:35.1]} 15. Nh5 {[%clk 0:01:53]}
15... Be5 {[%clk 0:01:35]} 16. Nc4 {[%clk 0:01:39.7]} 16... Nc6 {[%clk
0:01:27.5]} 17. Nxe5 {[%clk 0:01:17.8]} 17... Nxe5 {[%clk 0:01:28.4]} 18. Bb5+
{[%clk 0:01:15.1]} 18... Kd8 {[%clk 0:01:15.6]} 19. f4 {[%clk 0:01:03.3]} 19...
gxf4 {[%clk 0:01:10.3]} 20. Nxf4 {[%clk 0:01:02]} 20... Kc7 {[%clk 0:01:10.1]}
21. O-O-O {[%clk 0:00:52.7]} 21... Rhg8 {[%clk 0:00:59.2]} 22. Rhf1 {[%clk
0:00:47.8]} 22... Rad8 {[%clk 0:00:55.7]} 23. Rxd8 {[%clk 0:00:41.1]} 23... Qxd8
{[%clk 0:00:55]} 24. Nd3 {[%clk 0:00:39.9]} 24... Nxd3+ {[%clk 0:00:42.5]} 25.
Bxd3 {[%clk 0:00:38.6]} 25... Qg5+ {[%clk 0:00:42.6]} 26. Kc2 {[%clk 0:00:37.7]}
26... Rg7 {[%clk 0:00:40.5]} 27. Rf2 {[%clk 0:00:36.3]} 27... Qe5 {[%clk
0:00:28.8]} 28. Qf1 {[%clk 0:00:34.1]} 28... f6 {[%clk 0:00:04.8]} 29. Rxf6
{[%clk 0:00:27.7]} 29... Rxg2+ {[%clk 0:00:04.7]} 30. Qxg2 {[%clk 0:00:27.5]}
30... Qxf6 {[%clk 0:00:04.7]} 31. Qg4 {[%clk 0:00:24.4]} 31... Kd6 {[%clk
0:00:05.1]} 32. a4 {[%clk 0:00:19.9]} 32... Bc6 {[%clk 0:00:05.2]} 33. Kb3
{[%clk 0:00:19.2]} 33... Qf2 {[%clk 0:00:03.6]} 34. Qg5 {[%clk 0:00:14.4]} 34...
Qg3 {[%clk 0:00:03]} 35. Qd8+ {[%clk 0:00:13.7]} 35... Ke5 {[%clk 0:00:02.5]}
36. Qc7+ {[%clk 0:00:12.2]} 36... Kf6 {[%clk 0:00:03.1]} 37. Qxc6 {[%clk
0:00:12.2]} 37... Qxd3 {[%clk 0:00:02.9]} 38. Qc7 {[%clk 0:00:10.4]} 38... Qxh3
{[%clk 0:00:03.1]} 39. Qxa7 {[%clk 0:00:10.3]} 39... Qd3 {[%clk 0:00:02.6]} 40.
Qxb6 {[%clk 0:00:09.5]} 40... h3 {[%clk 0:00:03]} 41. Qb8 {[%clk 0:00:08.2]}
41... Qxe4 {[%clk 0:00:02.1]} 42. Qh8+ {[%clk 0:00:06.6]} 42... Ke7 {[%clk
0:00:02.4]} 43. Qxh3 {[%clk 0:00:06.6]} 43... Qd5+ {[%clk 0:00:02.6]} 44. Ka3
{[%clk 0:00:06.7]} 44... Qd1 {[%clk 0:00:01.9]} 45. Qh4+ {[%clk 0:00:06.5]}
45... Kd6 {[%clk 0:00:02.1]} 46. Ka2 {[%clk 0:00:06.4]} 46... e5 {[%clk
0:00:01.6]} 47. Qe4 {[%clk 0:00:05.9]} 47... Ke6 {[%clk 0:00:01.3]} 48. Qa8
{[%clk 0:00:05.5]} 48... Kf5 {[%clk 0:00:01.8]} 49. Qf8+ {[%clk 0:00:04.7]}
49... Ke4 {[%clk 0:00:01.8]} 50. Qxc5 {[%clk 0:00:04.6]} 50... Qxa4+ {[%clk
0:00:01.4]} 51. Kb1 {[%clk 0:00:04.6]} 51... Qd1+ {[%clk 0:00:02.3]} 52. Ka2
{[%clk 0:00:04.7]} 52... Kf4 {[%clk 0:00:03]} 53. Qc7 {[%clk 0:00:03.9]} 53...
Qa4+ {[%clk 0:00:02.3]} 54. Kb1 {[%clk 0:00:03.8]} 54... Qd1+ {[%clk 0:00:03.2]}
55. Ka2 {[%clk 0:00:04]} 55... Qd5+ {[%clk 0:00:04.1]} 56. Ka1 {[%clk
0:00:02.4]} 56... Kf3 {[%clk 0:00:04.2]} 0-1

[Event "*** SCC Grand Prix: Titled Tuesday Blitz"]
[Site "Chess.com"]
[Date "2020.06.23"]
[Round "9"]
[White "penguingm1"]
[Black "StephenDedalus83"]
[Result "0-1"]
[WhiteElo "2908"]
[BlackElo "2809"]
[TimeControl "180+1"]
[EndTime "11:47:08 PDT"]
[Termination "StephenDedalus83 won on time"]

1. d4 {[%clk 0:03:00.9]} 1... Nf6 {[%clk 0:02:59.1]} 2. c4 {[%clk 0:03:00.8]}
2... g6 {[%clk 0:02:59]} 3. f3 {[%clk 0:03:00.8]} 3... Bg7 {[%clk 0:02:57.8]} 4.
e4 {[%clk 0:03:00.9]} 4... d6 {[%clk 0:02:58.4]} 5. Nc3 {[%clk 0:03:01.5]} 5...
O-O {[%clk 0:02:58.3]} 6. Nge2 {[%clk 0:03:02]} 6... a6 {[%clk 0:02:57.3]} 7.
Be3 {[%clk 0:03:01.5]} 7... Nbd7 {[%clk 0:02:57.1]} 8. Qd2 {[%clk 0:03:00.8]}
8... c5 {[%clk 0:02:57.2]} 9. dxc5 {[%clk 0:02:53.9]} 9... dxc5 {[%clk
0:02:56.4]} 10. Rd1 {[%clk 0:02:36.4]} 10... Qc7 {[%clk 0:02:55.6]} 11. Nf4
{[%clk 0:02:32.6]} 11... e6 {[%clk 0:02:54.9]} 12. h4 {[%clk 0:02:13]} 12... h5
{[%clk 0:02:40.7]} 13. Be2 {[%clk 0:02:10.8]} 13... Ne5 {[%clk 0:02:32.2]} 14.
O-O {[%clk 0:02:06.3]} 14... Nfd7 {[%clk 0:02:23]} 15. Nh3 {[%clk 0:02:03.4]}
15... Nc6 {[%clk 0:02:20.3]} 16. f4 {[%clk 0:01:57]} 16... Nd4 {[%clk
0:02:17.4]} 17. e5 {[%clk 0:01:51.9]} 17... Nf5 {[%clk 0:02:16]} 18. Bf2 {[%clk
0:01:49.4]} 18... b6 {[%clk 0:02:13]} 19. Ne4 {[%clk 0:01:39.6]} 19... Bb7
{[%clk 0:02:08]} 20. Nd6 {[%clk 0:00:52.9]} 20... Rad8 {[%clk 0:01:53.6]} 21.
Nxb7 {[%clk 0:00:50.3]} 21... Qxb7 {[%clk 0:01:52.9]} 22. Bf3 {[%clk 0:00:46.2]}
22... Qc7 {[%clk 0:01:50.6]} 23. Qe2 {[%clk 0:00:40.9]} 23... Nb8 {[%clk
0:01:43.2]} 24. Qe4 {[%clk 0:00:37.6]} 24... b5 {[%clk 0:01:34.7]} 25. b3 {[%clk
0:00:35.2]} 25... Nd4 {[%clk 0:01:25.4]} 26. Ng5 {[%clk 0:00:33.6]} 26... Nxf3+
{[%clk 0:01:19.8]} 27. Qxf3 {[%clk 0:00:32.8]} 27... bxc4 {[%clk 0:01:18.3]} 28.
bxc4 {[%clk 0:00:32.4]} 28... Nc6 {[%clk 0:01:18]} 29. Ne4 {[%clk 0:00:27]}
29... Nd4 {[%clk 0:01:15.9]} 30. Bxd4 {[%clk 0:00:24.2]} 30... cxd4 {[%clk
0:01:15.9]} 31. Nd6 {[%clk 0:00:24]} 31... Rxd6 {[%clk 0:01:02.8]} 32. exd6
{[%clk 0:00:23.9]} 32... Qxd6 {[%clk 0:00:56.8]} 33. Rf2 {[%clk 0:00:23.5]}
33... Qc5 {[%clk 0:00:55.8]} 34. Qd3 {[%clk 0:00:22.6]} 34... Rb8 {[%clk
0:00:54.1]} 35. g3 {[%clk 0:00:21.9]} 35... Rb4 {[%clk 0:00:52.1]} 36. Rc2
{[%clk 0:00:22.1]} 36... Bf6 {[%clk 0:00:48.6]} 37. Kg2 {[%clk 0:00:22.2]} 37...
Kg7 {[%clk 0:00:48]} 38. Rdd2 {[%clk 0:00:19.4]} 38... a5 {[%clk 0:00:47.7]} 39.
Rd1 {[%clk 0:00:19.7]} 39... Qc6+ {[%clk 0:00:47.2]} 40. Qf3 {[%clk 0:00:18.4]}
40... Qc5 {[%clk 0:00:47]} 41. Rdc1 {[%clk 0:00:18.8]} 41... Rb6 {[%clk
0:00:42.9]} 42. Qd3 {[%clk 0:00:18.7]} 42... Rb4 {[%clk 0:00:42.8]} 43. Kh2
{[%clk 0:00:18.9]} 43... Rb6 {[%clk 0:00:41.5]} 44. Qf3 {[%clk 0:00:18.6]} 44...
Rb4 {[%clk 0:00:41.1]} 45. Qa3 {[%clk 0:00:18.7]} 45... Be7 {[%clk 0:00:37.9]}
46. Rb2 {[%clk 0:00:14.9]} 46... d3 {[%clk 0:00:32.7]} 47. Rd2 {[%clk
0:00:07.6]} 47... Qe3 {[%clk 0:00:15.1]} 48. Qxd3 {[%clk 0:00:05.7]} 48... Qxd3
{[%clk 0:00:15]} 49. Rxd3 {[%clk 0:00:06.6]} 49... Rb2+ {[%clk 0:00:15.1]} 50.
Kh1 {[%clk 0:00:06]} 50... Bc5 {[%clk 0:00:15.1]} 51. a3 {[%clk 0:00:06.1]}
51... Ra2 {[%clk 0:00:14.3]} 52. Rcc3 {[%clk 0:00:05]} 52... Kf6 {[%clk
0:00:14.1]} 53. Rb3 {[%clk 0:00:05.2]} 53... a4 {[%clk 0:00:12.4]} 54. Rb5
{[%clk 0:00:05.1]} 54... Bxa3 {[%clk 0:00:12.4]} 55. Ra5 {[%clk 0:00:05.2]}
55... Be7 {[%clk 0:00:11.7]} 56. c5 {[%clk 0:00:05.3]} 56... Rc2 {[%clk
0:00:11]} 57. Rxa4 {[%clk 0:00:05.7]} 57... Bxc5 {[%clk 0:00:10.7]} 58. Rd7
{[%clk 0:00:05]} 58... Kf5 {[%clk 0:00:09.6]} 59. Rd3 {[%clk 0:00:02.5]} 59...
Kg4 {[%clk 0:00:08.3]} 60. Ra5 {[%clk 0:00:01.5]} 60... Bf2 {[%clk 0:00:05.3]}
0-1

[Event "*** SCC Grand Prix: Titled Tuesday Blitz"]
[Site "Chess.com"]
[Date "2020.06.23"]
[Round "9"]
[White "Harsha_Bharathakoti"]
[Black "stanyga"]
[Result "1-0"]
[WhiteElo "2834"]
[BlackElo "2624"]
[TimeControl "180+1"]
[EndTime "11:47:10 PDT"]
[Termination "Harsha_Bharathakoti won by resignation"]

1. d4 {[%clk 0:03:00.9]} 1... Nf6 {[%clk 0:02:58.8]} 2. Nf3 {[%clk 0:02:58.9]}
2... g6 {[%clk 0:02:57.9]} 3. Nbd2 {[%clk 0:02:59]} 3... d5 {[%clk 0:02:57.4]}
4. e3 {[%clk 0:02:57.6]} 4... Bg7 {[%clk 0:02:57.1]} 5. b4 {[%clk 0:02:57.7]}
5... O-O {[%clk 0:02:55.9]} 6. Bb2 {[%clk 0:02:55.5]} 6... a5 {[%clk 0:02:49.3]}
7. b5 {[%clk 0:02:55.5]} 7... c5 {[%clk 0:02:47.2]} 8. bxc6 {[%clk 0:02:46.5]}
8... bxc6 {[%clk 0:02:41.6]} 9. Bd3 {[%clk 0:02:39.1]} 9... Ba6 {[%clk
0:02:40.6]} 10. O-O {[%clk 0:02:37]} 10... Bxd3 {[%clk 0:02:35.3]} 11. cxd3
{[%clk 0:02:37.9]} 11... Nbd7 {[%clk 0:02:33.1]} 12. Qa4 {[%clk 0:02:35.9]}
12... c5 {[%clk 0:02:31.1]} 13. Rfc1 {[%clk 0:02:32.6]} 13... cxd4 {[%clk
0:02:25.4]} 14. Bxd4 {[%clk 0:02:31.5]} 14... e6 {[%clk 0:02:09.8]} 15. Nb3
{[%clk 0:02:09.9]} 15... Re8 {[%clk 0:02:07.3]} 16. Ne5 {[%clk 0:02:03.9]} 16...
Nxe5 {[%clk 0:02:05.5]} 17. Bxe5 {[%clk 0:02:04.8]} 17... Nd7 {[%clk 0:01:51.9]}
18. Bxg7 {[%clk 0:01:58.8]} 18... Kxg7 {[%clk 0:01:51.2]} 19. Rc2 {[%clk
0:01:26.1]} 19... Ne5 {[%clk 0:01:45.8]} 20. Qd4 {[%clk 0:01:24]} 20... Qf6
{[%clk 0:01:42]} 21. Rc7 {[%clk 0:01:12.3]} 21... Rec8 {[%clk 0:01:22.3]} 22.
Rac1 {[%clk 0:00:56.5]} 22... Rxc7 {[%clk 0:01:20.2]} 23. Rxc7 {[%clk
0:00:57.4]} 23... a4 {[%clk 0:01:15.5]} 24. Nc5 {[%clk 0:00:57.3]} 24... Rb8
{[%clk 0:01:04.5]} 25. h3 {[%clk 0:00:48.2]} 25... Rb1+ {[%clk 0:00:47.6]} 26.
Kh2 {[%clk 0:00:48.5]} 26... Rb2 {[%clk 0:00:47.4]} 27. Nxe6+ {[%clk 0:00:40.2]}
27... Kh6 {[%clk 0:00:37.5]} 28. Qf4+ {[%clk 0:00:07.8]} 28... Qxf4+ {[%clk
0:00:36.7]} 29. Nxf4 {[%clk 0:00:08.7]} 29... Rxf2 {[%clk 0:00:34.3]} 30. d4
{[%clk 0:00:09.2]} 30... Nc4 {[%clk 0:00:21.6]} 31. Nxd5 {[%clk 0:00:09.8]}
31... Nd6 {[%clk 0:00:21.8]} 32. a3 {[%clk 0:00:07.8]} 32... Nb5 {[%clk
0:00:15.3]} 33. Rc4 {[%clk 0:00:06.5]} 33... Nxa3 {[%clk 0:00:13.2]} 34. Rxa4
{[%clk 0:00:06.9]} 34... Nc2 {[%clk 0:00:13.6]} 35. Ra2 {[%clk 0:00:07.3]} 35...
Re2 {[%clk 0:00:09.7]} 36. Nb4 {[%clk 0:00:03]} 36... Nxd4 {[%clk 0:00:09.1]}
37. exd4 {[%clk 0:00:03.2]} 37... Re4 {[%clk 0:00:09.1]} 38. Rd2 {[%clk
0:00:03.5]} 38... Kg7 {[%clk 0:00:08.4]} 39. Kg3 {[%clk 0:00:03.5]} 39... Kf6
{[%clk 0:00:08.9]} 40. Kf3 {[%clk 0:00:04.1]} 40... Rh4 {[%clk 0:00:08.9]} 41.
Nd5+ {[%clk 0:00:04.5]} 41... Ke6 {[%clk 0:00:09.2]} 42. Ne3 {[%clk 0:00:05.4]}
42... Kd6 {[%clk 0:00:09.3]} 43. d5 {[%clk 0:00:03.1]} 43... f5 {[%clk 0:00:09]}
44. g3 {[%clk 0:00:02.4]} 44... Rxh3 {[%clk 0:00:09]} 45. Nc4+ {[%clk
0:00:03.1]} 45... Kd7 {[%clk 0:00:08.1]} 46. d6 {[%clk 0:00:03.8]} 46... Rh1
{[%clk 0:00:08.2]} 47. Ne5+ {[%clk 0:00:04.5]} 47... Ke6 {[%clk 0:00:08.5]} 48.
d7 {[%clk 0:00:04.9]} 48... Rf1+ {[%clk 0:00:09.1]} 49. Ke2 {[%clk 0:00:05.1]}
49... Rh1 {[%clk 0:00:08.8]} 50. d8=Q {[%clk 0:00:05.5]} 1-0